[Event "Titled Tuesday Blitz May 23 Early 2023"]
[White "Sychev, Klementy"]
[Black "Ashraf, Artin"]
[WhiteFideId "4114060"]
[BlackFideId "22514805"]
[WhiteElo "2583"]
[BlackElo "2188"]
[Result "1-0"]
[Round "08"]
[TimeControl "180+2"]
[Date "2023.05.23"]
[WhiteClock "0:00:10"]
[BlackClock "0:00:00"]

1. e4 {[%clk 0:03:00]}  c5 {[%clk 0:02:55]} 2. Nf3 {[%clk 0:03:01]}  d6 {[%clk 0:02:54]} 3. d4 {[%clk 0:03:01]}  cxd4 {[%clk 0:02:55]} 4. Nxd4 {[%clk 0:03:02]}  Nf6 {[%clk 0:02:56]} 5. Nc3 {[%clk 0:03:02]}  a6 {[%clk 0:02:56]} 6. Bg5 {[%clk 0:03:02]}  e6 {[%clk 0:02:55]} 7. f4 {[%clk 0:03:02]}  Qb6 {[%clk 0:02:54]} 8. Qd2 {[%clk 0:03:02]}  h6 {[%clk 0:02:53]} 9. Bxf6 {[%clk 0:02:57]}  gxf6 {[%clk 0:02:54]} 10. O-O-O {[%clk 0:02:55]}  Nc6 {[%clk 0:02:54]} 11. Nb3 {[%clk 0:02:54]}  Qc7 {[%clk 0:02:47]} 12. Be2 {[%clk 0:02:55]}  h5 {[%clk 0:02:47]} 13. Rhf1 {[%clk 0:02:54]}  Bd7 {[%clk 0:02:46]} 14. Rf3 {[%clk 0:02:54]}  O-O-O {[%clk 0:02:45]} 15. Rh3 {[%clk 0:02:54]}  h4 {[%clk 0:02:44]} 16. Qe1 {[%clk 0:02:54]}  b5 {[%clk 0:02:13]} 17. Rxh4 {[%clk 0:02:43]}  Rxh4 {[%clk 0:02:12]} 18. Qxh4 {[%clk 0:02:44]}  Be7 {[%clk 0:02:13]} 19. Qf2 {[%clk 0:02:24]}  Kb7 {[%clk 0:02:11]} 20. h4 {[%clk 0:02:15]}  Rc8 {[%clk 0:02:09]} 21. a3 {[%clk 0:02:07]}  Na5 {[%clk 0:01:52]} 22. Nxa5+ {[%clk 0:01:48]}  Qxa5 {[%clk 0:01:53]} 23. Qd4 {[%clk 0:01:46]}  Bc6 {[%clk 0:01:39]} 24. h5 {[%clk 0:01:37]}  Rg8 {[%clk 0:01:07]} 25. g4 {[%clk 0:01:29]}  Qb6 {[%clk 0:01:04]} 26. Qxb6+ {[%clk 0:01:03]}  Kxb6 {[%clk 0:01:05]} 27. Rh1 {[%clk 0:01:02]}  f5 {[%clk 0:00:57]} 28. gxf5 {[%clk 0:01:00]}  exf5 {[%clk 0:00:58]} 29. Nd5+ {[%clk 0:00:57]}  Bxd5 {[%clk 0:00:50]} 30. exd5 {[%clk 0:00:58]}  Rg2 {[%clk 0:00:50]} 31. Bd3 {[%clk 0:00:53]}  Rf2 {[%clk 0:00:47]} 32. h6 {[%clk 0:00:50]}  Bf6 {[%clk 0:00:45]} 33. h7 {[%clk 0:00:49]}  Bh8 {[%clk 0:00:36]} 34. Rg1 {[%clk 0:00:48]}  Bd4 {[%clk 0:00:21]} 35. Rg8 {[%clk 0:00:35]}  Rh2 {[%clk 0:00:17]} 36. Bxf5 {[%clk 0:00:31]}  Kc5 {[%clk 0:00:07]} 37. c3 {[%clk 0:00:24]}  Bf6 {[%clk 0:00:07]} 38. Be4 {[%clk 0:00:23]}  Re2 {[%clk 0:00:03]} 39. Bg2 {[%clk 0:00:15]}  Rf2 {[%clk 0:00:00]} 40. Be4 {[%clk 0:00:10]} 1-0


[Site "https://www.chess.com"]

[Event "Titled Tuesday Blitz May 23 Early 2023"]
[White "Zherebukh, Yaroslav"]
[Black "Stoleriu, George"]
[WhiteFideId "14116804"]
[BlackFideId "1227505"]
[WhiteElo "2531"]
[BlackElo "2308"]
[Result "0-1"]
[Round "08"]
[TimeControl "180+2"]
[Date "2023.05.23"]
[WhiteClock "0:00:00"]
[BlackClock "0:00:02"]

1. d4 {[%clk 0:03:00]}  Nf6 {[%clk 0:02:53]} 2. c4 {[%clk 0:02:58]}  e6 {[%clk 0:02:52]} 3. Nf3 {[%clk 0:02:58]}  Bb4+ {[%clk 0:02:51]} 4. Nbd2 {[%clk 0:02:57]}  b6 {[%clk 0:02:48]} 5. a3 {[%clk 0:02:56]}  Bxd2+ {[%clk 0:02:44]} 6. Qxd2 {[%clk 0:02:55]}  Bb7 {[%clk 0:02:40]} 7. e3 {[%clk 0:02:51]}  a5 {[%clk 0:02:37]} 8. b3 {[%clk 0:02:50]}  O-O {[%clk 0:02:35]} 9. Bb2 {[%clk 0:02:50]}  d6 {[%clk 0:02:33]} 10. Bd3 {[%clk 0:02:48]}  Ne4 {[%clk 0:02:30]} 11. Qc2 {[%clk 0:02:45]}  f5 {[%clk 0:02:29]} 12. d5 {[%clk 0:02:27]}  exd5 {[%clk 0:01:37]} 13. Nd4 {[%clk 0:02:25]}  Qe7 {[%clk 0:01:27]} 14. cxd5 {[%clk 0:02:09]}  Bxd5 {[%clk 0:01:19]} 15. Bc4 {[%clk 0:01:21]}  Bxc4 {[%clk 0:00:51]} 16. Qxc4+ {[%clk 0:01:22]}  Qf7 {[%clk 0:00:52]} 17. Ne6 {[%clk 0:01:21]}  b5 {[%clk 0:00:33]} 18. Qxc7 {[%clk 0:01:20]}  Na6 {[%clk 0:00:22]} 19. Qxf7+ {[%clk 0:01:09]}  Rxf7 {[%clk 0:00:23]} 20. Ke2 {[%clk 0:00:50]}  Nac5 {[%clk 0:00:22]} 21. Nd4 {[%clk 0:00:36]}  f4 {[%clk 0:00:14]} 22. f3 {[%clk 0:00:34]}  fxe3 {[%clk 0:00:13]} 23. b4 {[%clk 0:00:22]}  Na4 {[%clk 0:00:12]} 24. Kxe3 {[%clk 0:00:16]}  Nf6 {[%clk 0:00:08]} 25. Bc1 {[%clk 0:00:13]}  Nd5+ {[%clk 0:00:06]} 26. Kf2 {[%clk 0:00:11]}  axb4 {[%clk 0:00:06]} 27. Nxb5 {[%clk 0:00:08]}  b3 {[%clk 0:00:05]} 28. Rb1 {[%clk 0:00:08]}  Rb7 {[%clk 0:00:04]} 29. Nxd6 {[%clk 0:00:04]}  Rb6 {[%clk 0:00:04]} 30. Nc4 {[%clk 0:00:02]}  Rb5 {[%clk 0:00:03]} 31. Bd2 {[%clk 0:00:00]}  Rab8 {[%clk 0:00:02]} 0-1


[Site "https://www.chess.com"]

[Event "Titled Tuesday Blitz May 23 Early 2023"]
[White "Sattarov, Bobir"]
[Black "Weishaeutel, Moritz"]
[WhiteFideId "14203081"]
[BlackFideId "12967300"]
[WhiteElo "2351"]
[BlackElo "2301"]
[Result "1-0"]
[Round "08"]
[TimeControl "180+2"]
[Date "2023.05.23"]
[WhiteClock "0:00:15"]
[BlackClock "0:00:00"]

1. e4 {[%clk 0:03:00]}  e5 {[%clk 0:03:00]} 2. Nf3 {[%clk 0:03:00]}  Nf6 {[%clk 0:03:00]} 3. Nc3 {[%clk 0:02:58]}  Nc6 {[%clk 0:03:01]} 4. a3 {[%clk 0:02:59]}  d5 {[%clk 0:03:01]} 5. Bb5 {[%clk 0:02:58]}  Nxe4 {[%clk 0:03:01]} 6. Nxe5 {[%clk 0:02:58]}  Qg5 {[%clk 0:02:44]} 7. Nxc6 {[%clk 0:02:57]}  Qxg2 {[%clk 0:02:33]} 8. Rf1 {[%clk 0:02:57]}  a6 {[%clk 0:02:29]} 9. Nxd5 {[%clk 0:02:57]}  axb5 {[%clk 0:02:18]} 10. Nxc7+ {[%clk 0:02:58]}  Kd7 {[%clk 0:02:19]} 11. Nxa8 {[%clk 0:02:58]}  Kxc6 {[%clk 0:02:20]} 12. Qe2 {[%clk 0:02:59]}  Bh3 {[%clk 0:02:13]} 13. a4 {[%clk 0:02:44]}  Qxf1+ {[%clk 0:02:06]} 14. Qxf1 {[%clk 0:02:45]}  Bxf1 {[%clk 0:02:07]} 15. Kxf1 {[%clk 0:02:45]}  b4 {[%clk 0:02:05]} 16. d3 {[%clk 0:02:35]}  Nxf2 {[%clk 0:01:48]} 17. Bf4 {[%clk 0:01:51]}  Nh3 {[%clk 0:01:15]} 18. Bg3 {[%clk 0:01:46]}  f5 {[%clk 0:01:15]} 19. a5 {[%clk 0:01:26]}  f4 {[%clk 0:01:12]} 20. Be1 {[%clk 0:01:20]}  Bc5 {[%clk 0:00:45]} 21. Nb6 {[%clk 0:01:18]}  g5 {[%clk 0:00:45]} 22. Nc4 {[%clk 0:01:17]}  Kd5 {[%clk 0:00:40]} 23. a6 {[%clk 0:01:09]}  bxa6 {[%clk 0:00:19]} 24. Rxa6 {[%clk 0:01:09]}  g4 {[%clk 0:00:19]} 25. Ra5 {[%clk 0:01:07]}  Kc6 {[%clk 0:00:18]} 26. Ne5+ {[%clk 0:01:06]}  Kb6 {[%clk 0:00:17]} 27. Nc4+ {[%clk 0:01:06]}  Kc6 {[%clk 0:00:17]} 28. c3 {[%clk 0:00:56]}  Rg8 {[%clk 0:00:11]} 29. cxb4 {[%clk 0:00:54]}  Bd4 {[%clk 0:00:11]} 30. b5+ {[%clk 0:00:44]}  Kb7 {[%clk 0:00:11]} 31. Nd6+ {[%clk 0:00:44]}  Kb8 {[%clk 0:00:11]} 32. Ne4 {[%clk 0:00:42]}  h5 {[%clk 0:00:08]} 33. Ra4 {[%clk 0:00:40]}  Be3 {[%clk 0:00:08]} 34. Nf6 {[%clk 0:00:39]}  Rg5 {[%clk 0:00:06]} 35. Rb4 {[%clk 0:00:34]}  f3 {[%clk 0:00:03]} 36. Ne4 {[%clk 0:00:31]}  Rf5 {[%clk 0:00:03]} 37. Bg3+ {[%clk 0:00:30]}  Kb7 {[%clk 0:00:03]} 38. Nd6+ {[%clk 0:00:30]}  Kb6 {[%clk 0:00:03]} 39. Nxf5 {[%clk 0:00:31]}  Bc5 {[%clk 0:00:03]} 40. Rb3 {[%clk 0:00:30]}  Ng5 {[%clk 0:00:03]} 41. d4 {[%clk 0:00:30]}  Bf8 {[%clk 0:00:02]} 42. Bh4 {[%clk 0:00:29]}  Ne4 {[%clk 0:00:03]} 43. Bd8+ {[%clk 0:00:28]}  Kb7 {[%clk 0:00:03]} 44. Re3 {[%clk 0:00:25]}  Nd2+ {[%clk 0:00:02]} 45. Kf2 {[%clk 0:00:24]}  Bb4 {[%clk 0:00:02]} 46. Be7 {[%clk 0:00:23]}  Ba5 {[%clk 0:00:02]} 47. b4 {[%clk 0:00:23]}  Bb6 {[%clk 0:00:01]} 48. Bc5 {[%clk 0:00:23]}  Bc7 {[%clk 0:00:01]} 49. b6 {[%clk 0:00:22]}  Bf4 {[%clk 0:00:01]} 50. Re7+ {[%clk 0:00:21]}  Kc6 {[%clk 0:00:01]} 51. b7 {[%clk 0:00:16]}  Nc4 {[%clk 0:00:00]} 52. Bd6 {[%clk 0:00:15]} 1-0


[Site "https://www.chess.com"]

[Event "Titled Tuesday Blitz May 23 Early 2023"]
[White "Jeet, Jain"]
[Black "Gharibyan, Mamikon"]
[WhiteFideId "5073022"]
[BlackFideId "13308300"]
[WhiteElo "2067"]
[BlackElo "2445"]
[Result "1/2-1/2"]
[Round "08"]
[TimeControl "180+2"]
[Date "2023.05.23"]
[WhiteClock "0:01:42"]
[BlackClock "0:01:37"]

1. Nf3 {[%clk 0:02:55]}  g6 {[%clk 0:02:58]} 2. d4 {[%clk 0:02:51]}  Bg7 {[%clk 0:02:58]} 3. g3 {[%clk 0:02:52]}  Nf6 {[%clk 0:02:57]} 4. Bg2 {[%clk 0:02:53]}  O-O {[%clk 0:02:58]} 5. O-O {[%clk 0:02:53]}  d5 {[%clk 0:02:58]} 6. c4 {[%clk 0:02:52]}  c6 {[%clk 0:02:59]} 7. cxd5 {[%clk 0:02:53]}  cxd5 {[%clk 0:03:00]} 8. Nc3 {[%clk 0:02:53]}  Ne4 {[%clk 0:03:00]} 9. Ne5 {[%clk 0:02:51]}  Bf5 {[%clk 0:03:00]} 10. Nxe4 {[%clk 0:02:49]}  Bxe4 {[%clk 0:02:55]} 11. Bxe4 {[%clk 0:02:48]}  dxe4 {[%clk 0:02:56]} 12. Bf4 {[%clk 0:02:38]}  Qd5 {[%clk 0:02:44]} 13. Rc1 {[%clk 0:02:35]}  Nc6 {[%clk 0:02:42]} 14. Nxc6 {[%clk 0:02:34]}  bxc6 {[%clk 0:02:43]} 15. e3 {[%clk 0:02:22]}  Qxa2 {[%clk 0:02:38]} 16. Rxc6 {[%clk 0:02:16]}  Qxb2 {[%clk 0:02:35]} 17. Qa4 {[%clk 0:02:13]}  a5 {[%clk 0:02:32]} 18. Rc5 {[%clk 0:02:11]}  Rfc8 {[%clk 0:02:19]} 19. Rxc8+ {[%clk 0:02:02]}  Rxc8 {[%clk 0:02:17]} 20. Qxa5 {[%clk 0:02:02]}  Bf6 {[%clk 0:02:13]} 21. Qd5 {[%clk 0:01:47]}  Qc2 {[%clk 0:02:07]} 22. Ra1 {[%clk 0:01:43]}  Kg7 {[%clk 0:01:37]} 23. Be5 {[%clk 0:01:42]} 1/2-1/2


[Site "https://www.chess.com"]

[Event "Titled Tuesday Blitz May 23 Early 2023"]
[White "Al-Tarboush, Ward"]
[Black "Rostovtsev, Dmitry"]
[WhiteFideId "7601450"]
[BlackFideId "34278320"]
[WhiteElo "2265"]
[BlackElo "2344"]
[Result "1-0"]
[Round "08"]
[TimeControl "180+2"]
[Date "2023.05.23"]
[WhiteClock "0:00:26"]
[BlackClock "0:00:02"]

1. e4 {[%clk 0:03:00]}  c5 {[%clk 0:02:59]} 2. Nf3 {[%clk 0:03:00]}  Nc6 {[%clk 0:02:59]} 3. d4 {[%clk 0:03:01]}  cxd4 {[%clk 0:03:00]} 4. Nxd4 {[%clk 0:03:02]}  Nf6 {[%clk 0:03:01]} 5. Nc3 {[%clk 0:03:02]}  d6 {[%clk 0:03:01]} 6. Bg5 {[%clk 0:03:01]}  g6 {[%clk 0:03:02]} 7. Bxf6 {[%clk 0:03:01]}  exf6 {[%clk 0:03:02]} 8. Bc4 {[%clk 0:03:00]}  Bg7 {[%clk 0:03:02]} 9. Nf3 {[%clk 0:02:58]}  O-O {[%clk 0:03:02]} 10. O-O {[%clk 0:02:58]}  f5 {[%clk 0:03:02]} 11. Bd5 {[%clk 0:02:55]}  fxe4 {[%clk 0:02:59]} 12. Bxe4 {[%clk 0:02:53]}  Be6 {[%clk 0:02:36]} 13. Qd2 {[%clk 0:02:53]}  Qa5 {[%clk 0:01:30]} 14. Rad1 {[%clk 0:02:41]}  Rfd8 {[%clk 0:01:27]} 15. Bd5 {[%clk 0:02:36]}  Bxc3 {[%clk 0:00:47]} 16. Qxc3 {[%clk 0:02:33]}  Qxc3 {[%clk 0:00:45]} 17. bxc3 {[%clk 0:02:34]}  Bxd5 {[%clk 0:00:45]} 18. Rxd5 {[%clk 0:02:34]}  Kf8 {[%clk 0:00:43]} 19. Rfd1 {[%clk 0:02:34]}  Ke7 {[%clk 0:00:43]} 20. Nd4 {[%clk 0:02:29]}  a6 {[%clk 0:00:36]} 21. Nb3 {[%clk 0:02:24]}  Rac8 {[%clk 0:00:35]} 22. Re1+ {[%clk 0:02:24]}  Kf6 {[%clk 0:00:34]} 23. Red1 {[%clk 0:02:24]}  Ke6 {[%clk 0:00:29]} 24. f4 {[%clk 0:02:24]}  Ne7 {[%clk 0:00:24]} 25. R5d3 {[%clk 0:02:24]}  d5 {[%clk 0:00:24]} 26. g4 {[%clk 0:02:20]}  Kf6 {[%clk 0:00:20]} 27. g5+ {[%clk 0:02:19]}  Kg7 {[%clk 0:00:20]} 28. Nd4 {[%clk 0:02:17]}  Rc7 {[%clk 0:00:18]} 29. Re1 {[%clk 0:02:16]}  Rdc8 {[%clk 0:00:17]} 30. h4 {[%clk 0:02:15]}  Kf8 {[%clk 0:00:15]} 31. Ree3 {[%clk 0:02:11]}  h6 {[%clk 0:00:15]} 32. gxh6 {[%clk 0:02:10]}  Kg8 {[%clk 0:00:14]} 33. h5 {[%clk 0:02:08]}  Kh7 {[%clk 0:00:07]} 34. hxg6+ {[%clk 0:02:07]}  Nxg6 {[%clk 0:00:08]} 35. Rf3 {[%clk 0:01:56]}  Kxh6 {[%clk 0:00:06]} 36. Nf5+ {[%clk 0:01:56]}  Kh7 {[%clk 0:00:06]} 37. Rh3+ {[%clk 0:01:57]}  Kg8 {[%clk 0:00:07]} 38. Rdf3 {[%clk 0:01:48]}  Re8 {[%clk 0:00:03]} 39. Nh6+ {[%clk 0:01:45]}  Kf8 {[%clk 0:00:03]} 40. f5 {[%clk 0:01:42]}  Ne5 {[%clk 0:00:03]} 41. Rfg3 {[%clk 0:01:37]}  Rc6 {[%clk 0:00:04]} 42. Ng8 {[%clk 0:01:29]}  Nd7 {[%clk 0:00:01]} 43. Rh8 {[%clk 0:01:27]}  Re1+ {[%clk 0:00:01]} 44. Kf2 {[%clk 0:01:27]}  Rc1 {[%clk 0:00:02]} 45. f6 {[%clk 0:01:20]}  Rxc2+ {[%clk 0:00:02]} 46. Kg1 {[%clk 0:01:20]}  Rc1+ {[%clk 0:00:02]} 47. Kf2 {[%clk 0:01:21]}  Rc2+ {[%clk 0:00:02]} 48. Ke1 {[%clk 0:01:18]}  Nxf6 {[%clk 0:00:01]} 49. Nxf6+ {[%clk 0:01:16]}  Ke7 {[%clk 0:00:02]} 50. Nxd5+ {[%clk 0:01:15]}  Kd6 {[%clk 0:00:02]} 51. Rd8+ {[%clk 0:01:00]}  Kc5 {[%clk 0:00:02]} 52. Rg5 {[%clk 0:00:53]}  Re6+ {[%clk 0:00:02]} 53. Kd1 {[%clk 0:00:45]}  Rf2 {[%clk 0:00:01]} 54. Nf4+ {[%clk 0:00:38]}  Kc4 {[%clk 0:00:01]} 55. Nxe6 {[%clk 0:00:35]}  fxe6 {[%clk 0:00:02]} 56. Rc8+ {[%clk 0:00:31]}  Kd3 {[%clk 0:00:02]} 57. Rg3+ {[%clk 0:00:32]}  Ke4 {[%clk 0:00:02]} 58. Rc4+ {[%clk 0:00:32]}  Ke5 {[%clk 0:00:02]} 59. Re3+ {[%clk 0:00:31]}  Kd5 {[%clk 0:00:02]} 60. Rd4+ {[%clk 0:00:32]}  Kc5 {[%clk 0:00:03]} 61. Rd2 {[%clk 0:00:30]}  Rf1+ {[%clk 0:00:03]} 62. Kc2 {[%clk 0:00:30]}  Rf6 {[%clk 0:00:04]} 63. Rde2 {[%clk 0:00:30]}  Kd6 {[%clk 0:00:04]} 64. Kb3 {[%clk 0:00:29]}  b6 {[%clk 0:00:04]} 65. a4 {[%clk 0:00:29]}  a5 {[%clk 0:00:04]} 66. Kc4 {[%clk 0:00:28]}  Kc7 {[%clk 0:00:01]} 67. Rxe6 {[%clk 0:00:27]}  Rf1 {[%clk 0:00:02]} 68. Re7+ {[%clk 0:00:26]}  Kc6 {[%clk 0:00:02]} 69. R2e6# {[%clk 0:00:26]} 1-0


[Site "https://www.chess.com"]

[Event "Titled Tuesday Blitz May 23 Early 2023"]
[White "Kilic, Eray"]
[Black "Kleiman, Jake"]
[WhiteFideId "44517173"]
[BlackFideId "2020041"]
[WhiteElo "2328"]
[BlackElo "2635"]
[Result "1-0"]
[Round "08"]
[TimeControl "180+2"]
[Date "2023.05.23"]
[WhiteClock "0:00:04"]
[BlackClock "0:00:10"]

1. Nf3 {[%clk 0:03:00]}  Nf6 {[%clk 0:03:00]} 2. g3 {[%clk 0:03:00]}  e6 {[%clk 0:03:00]} 3. Bg2 {[%clk 0:03:00]}  d5 {[%clk 0:03:01]} 4. O-O {[%clk 0:03:01]}  b5 {[%clk 0:03:01]} 5. b3 {[%clk 0:03:00]}  c5 {[%clk 0:03:00]} 6. Bb2 {[%clk 0:03:01]}  Bb7 {[%clk 0:03:01]} 7. d3 {[%clk 0:02:59]}  Be7 {[%clk 0:03:01]} 8. Nbd2 {[%clk 0:02:59]}  O-O {[%clk 0:03:01]} 9. Ne5 {[%clk 0:02:57]}  Nc6 {[%clk 0:02:58]} 10. Nxc6 {[%clk 0:02:54]}  Bxc6 {[%clk 0:02:58]} 11. Re1 {[%clk 0:02:53]}  a5 {[%clk 0:02:56]} 12. e4 {[%clk 0:02:52]}  a4 {[%clk 0:02:51]} 13. exd5 {[%clk 0:02:49]}  Bxd5 {[%clk 0:02:47]} 14. Ne4 {[%clk 0:02:48]}  Ra6 {[%clk 0:02:06]} 15. Rb1 {[%clk 0:02:25]}  axb3 {[%clk 0:02:03]} 16. axb3 {[%clk 0:02:26]}  Ba8 {[%clk 0:01:49]} 17. Bxf6 {[%clk 0:02:23]}  gxf6 {[%clk 0:01:44]} 18. Qh5 {[%clk 0:02:16]}  f5 {[%clk 0:01:39]} 19. Nd2 {[%clk 0:02:16]}  Bxg2 {[%clk 0:01:37]} 20. Kxg2 {[%clk 0:02:16]}  Ra2 {[%clk 0:01:32]} 21. Rbc1 {[%clk 0:02:04]}  Bf6 {[%clk 0:00:47]} 22. Nf3 {[%clk 0:02:01]}  Kg7 {[%clk 0:00:37]} 23. Re2 {[%clk 0:01:55]}  Qd5 {[%clk 0:00:35]} 24. c4 {[%clk 0:01:47]}  Qa8 {[%clk 0:00:34]} 25. Rxa2 {[%clk 0:01:47]}  Qxa2 {[%clk 0:00:35]} 26. cxb5 {[%clk 0:01:48]}  Qxb3 {[%clk 0:00:34]} 27. Rxc5 {[%clk 0:01:47]}  Qxd3 {[%clk 0:00:34]} 28. Rc7 {[%clk 0:01:42]}  Qxb5 {[%clk 0:00:24]} 29. Ng5 {[%clk 0:01:29]}  Qd5+ {[%clk 0:00:22]} 30. Kh3 {[%clk 0:01:28]}  Bxg5 {[%clk 0:00:18]} 31. Qxg5+ {[%clk 0:01:29]}  Kh8 {[%clk 0:00:19]} 32. Qf6+ {[%clk 0:01:25]}  Kg8 {[%clk 0:00:19]} 33. Ra7 {[%clk 0:01:12]}  Qf3 {[%clk 0:00:16]} 34. Ra4 {[%clk 0:00:51]}  Qh5+ {[%clk 0:00:14]} 35. Kg2 {[%clk 0:00:50]}  Qg6 {[%clk 0:00:13]} 36. Qe7 {[%clk 0:00:50]}  h6 {[%clk 0:00:12]} 37. h3 {[%clk 0:00:43]}  Rc8 {[%clk 0:00:10]} 38. Kh2 {[%clk 0:00:39]}  Rf8 {[%clk 0:00:09]} 39. g4 {[%clk 0:00:36]}  h5 {[%clk 0:00:05]} 40. gxf5 {[%clk 0:00:27]}  Qxf5 {[%clk 0:00:05]} 41. Kg2 {[%clk 0:00:17]}  Rc8 {[%clk 0:00:04]} 42. Ra3 {[%clk 0:00:13]}  Kh7 {[%clk 0:00:03]} 43. Rg3 {[%clk 0:00:10]}  Rg8 {[%clk 0:00:02]} 44. Rxg8 {[%clk 0:00:08]}  Kxg8 {[%clk 0:00:03]} 45. Qb7 {[%clk 0:00:09]}  Kg7 {[%clk 0:00:04]} 46. Qc7 {[%clk 0:00:09]}  Qe4+ {[%clk 0:00:03]} 47. Kg1 {[%clk 0:00:09]}  Qd5 {[%clk 0:00:04]} 48. Qc3+ {[%clk 0:00:08]}  Kg6 {[%clk 0:00:04]} 49. Qc2+ {[%clk 0:00:09]}  Qf5 {[%clk 0:00:05]} 50. Qc8 {[%clk 0:00:09]}  Qxh3 {[%clk 0:00:05]} 51. Qg8+ {[%clk 0:00:09]}  Kf6 {[%clk 0:00:05]} 52. Qh8+ {[%clk 0:00:10]}  Ke7 {[%clk 0:00:06]} 53. Qa8 {[%clk 0:00:10]}  Qg4+ {[%clk 0:00:07]} 54. Kh2 {[%clk 0:00:10]}  Qf5 {[%clk 0:00:07]} 55. Qa7+ {[%clk 0:00:10]}  Kf6 {[%clk 0:00:08]} 56. Qa8 {[%clk 0:00:10]}  Kg6 {[%clk 0:00:09]} 57. Qg8+ {[%clk 0:00:09]}  Kh6 {[%clk 0:00:10]} 58. Qh8+ {[%clk 0:00:10]}  Kg5 {[%clk 0:00:10]} 59. Qg7+ {[%clk 0:00:10]}  Kf4 {[%clk 0:00:11]} 60. Qd4+ {[%clk 0:00:10]}  Qe4 {[%clk 0:00:11]} 61. Qf6+ {[%clk 0:00:10]}  Kg4 {[%clk 0:00:11]} 62. Qg7+ {[%clk 0:00:04]}  Kh4 {[%clk 0:00:10]} 63. Qg3# {[%clk 0:00:04]} 1-0


[Site "https://www.chess.com"]

[Event "Titled Tuesday Blitz May 23 Early 2023"]
[White "Omelja, Artem"]
[Black "Fernandez Guillen, Ernesto J."]
[WhiteFideId "14119846"]
[BlackFideId "3512428"]
[WhiteElo "2404"]
[BlackElo "2429"]
[Result "0-1"]
[Round "08"]
[TimeControl "180+2"]
[Date "2023.05.23"]
[WhiteClock "0:00:00"]
[BlackClock "0:01:51"]

1. e4 {[%clk 0:03:00]}  e5 {[%clk 0:02:59]} 2. Nf3 {[%clk 0:02:55]}  Nc6 {[%clk 0:02:58]} 3. d4 {[%clk 0:02:54]}  exd4 {[%clk 0:02:58]} 4. Nxd4 {[%clk 0:02:55]}  g6 {[%clk 0:02:59]} 5. Nc3 {[%clk 0:02:53]}  Bg7 {[%clk 0:02:57]} 6. Be3 {[%clk 0:02:54]}  Nge7 {[%clk 0:02:56]} 7. Bc4 {[%clk 0:02:51]}  O-O {[%clk 0:02:56]} 8. O-O {[%clk 0:02:51]}  Ne5 {[%clk 0:02:56]} 9. Be2 {[%clk 0:02:49]}  d5 {[%clk 0:02:57]} 10. f4 {[%clk 0:02:35]}  Nd7 {[%clk 0:02:57]} 11. f5 {[%clk 0:02:29]}  c5 {[%clk 0:02:51]} 12. Nf3 {[%clk 0:01:58]}  d4 {[%clk 0:02:51]} 13. Nxd4 {[%clk 0:01:59]}  cxd4 {[%clk 0:02:52]} 14. Bxd4 {[%clk 0:01:59]}  Bxd4+ {[%clk 0:02:51]} 15. Qxd4 {[%clk 0:02:00]}  Qb6 {[%clk 0:02:45]} 16. Qxb6 {[%clk 0:02:00]}  Nxb6 {[%clk 0:02:46]} 17. f6 {[%clk 0:01:53]}  Nc6 {[%clk 0:02:45]} 18. a4 {[%clk 0:01:53]}  a5 {[%clk 0:02:41]} 19. Rad1 {[%clk 0:01:50]}  Be6 {[%clk 0:02:39]} 20. Nd5 {[%clk 0:01:46]}  Bxd5 {[%clk 0:02:35]} 21. exd5 {[%clk 0:01:45]}  Nb4 {[%clk 0:02:36]} 22. Rd2 {[%clk 0:01:20]}  N4xd5 {[%clk 0:02:30]} 23. Bf3 {[%clk 0:01:20]}  Nxf6 {[%clk 0:02:25]} 24. Bxb7 {[%clk 0:01:17]}  Rab8 {[%clk 0:02:25]} 25. Bc6 {[%clk 0:01:09]}  Ng4 {[%clk 0:02:23]} 26. b3 {[%clk 0:01:05]}  Ne5 {[%clk 0:02:23]} 27. Bb5 {[%clk 0:01:05]}  Rbd8 {[%clk 0:02:22]} 28. Re2 {[%clk 0:01:04]}  f6 {[%clk 0:02:22]} 29. c4 {[%clk 0:01:03]}  Nbd7 {[%clk 0:02:22]} 30. b4 {[%clk 0:01:00]}  axb4 {[%clk 0:02:21]} 31. a5 {[%clk 0:01:00]}  Nc5 {[%clk 0:02:21]} 32. a6 {[%clk 0:01:00]}  b3 {[%clk 0:02:19]} 33. g4 {[%clk 0:00:45]}  h6 {[%clk 0:02:17]} 34. h4 {[%clk 0:00:39]}  g5 {[%clk 0:02:18]} 35. hxg5 {[%clk 0:00:39]}  hxg5 {[%clk 0:02:19]} 36. Ra1 {[%clk 0:00:28]}  Rf7 {[%clk 0:02:12]} 37. Kg2 {[%clk 0:00:24]}  Ra7 {[%clk 0:02:11]} 38. Rf2 {[%clk 0:00:16]}  Kg7 {[%clk 0:02:10]} 39. Raf1 {[%clk 0:00:15]}  Rd6 {[%clk 0:02:11]} 40. Rb2 {[%clk 0:00:13]}  Ned3 {[%clk 0:02:10]} 41. Rbb1 {[%clk 0:00:08]}  b2 {[%clk 0:02:10]} 42. Rfd1 {[%clk 0:00:07]}  Re6 {[%clk 0:02:09]} 43. Kf3 {[%clk 0:00:05]}  Rae7 {[%clk 0:02:08]} 44. Rd2 {[%clk 0:00:02]}  Re3+ {[%clk 0:02:05]} 45. Kg2 {[%clk 0:00:03]}  Re1 {[%clk 0:01:57]} 46. Rbxb2 {[%clk 0:00:02]}  Nxb2 {[%clk 0:01:56]} 47. Rxb2 {[%clk 0:00:02]}  R1e2+ {[%clk 0:01:56]} 48. Rxe2 {[%clk 0:00:02]}  Rxe2+ {[%clk 0:01:57]} 49. Kf3 {[%clk 0:00:02]}  Ra2 {[%clk 0:01:57]} 50. Ke3 {[%clk 0:00:03]}  Nxa6 {[%clk 0:01:53]} 51. Kd4 {[%clk 0:00:03]}  Nc7 {[%clk 0:01:53]} 52. Bc6 {[%clk 0:00:03]}  Ra5 {[%clk 0:01:51]} 53. Be4 {[%clk 0:00:02]}  Kf7 {[%clk 0:01:51]} 54. Bf5 {[%clk 0:00:01]}  Ke7 {[%clk 0:01:50]} 55. Kc3 {[%clk 0:00:02]}  Kd6 {[%clk 0:01:50]} 56. Kb4 {[%clk 0:00:00]}  Rc5 {[%clk 0:01:51]} 0-1


[Site "https://www.chess.com"]

[Event "Titled Tuesday Blitz May 23 Early 2023"]
[White "Garv Gaur"]
[Black "Tatarinov, Dmitry"]
[WhiteFideId "45030839"]
[BlackFideId "24160067"]
[WhiteElo "2068"]
[BlackElo "2326"]
[Result "0-1"]
[Round "08"]
[TimeControl "180+2"]
[Date "2023.05.23"]
[WhiteClock "0:00:59"]
[BlackClock "0:02:18"]

1. Nf3 {[%clk 0:02:59]}  d5 {[%clk 0:02:59]} 2. d4 {[%clk 0:02:58]}  Nf6 {[%clk 0:02:58]} 3. Bf4 {[%clk 0:02:57]}  c5 {[%clk 0:02:54]} 4. e3 {[%clk 0:02:58]}  Nc6 {[%clk 0:02:53]} 5. c3 {[%clk 0:02:57]}  e6 {[%clk 0:02:54]} 6. Nbd2 {[%clk 0:02:56]}  Bd6 {[%clk 0:02:53]} 7. Bg3 {[%clk 0:02:56]}  O-O {[%clk 0:02:53]} 8. Bd3 {[%clk 0:02:56]}  h6 {[%clk 0:02:53]} 9. O-O {[%clk 0:02:55]}  b6 {[%clk 0:02:53]} 10. Qe2 {[%clk 0:02:50]}  Bb7 {[%clk 0:02:52]} 11. e4 {[%clk 0:02:49]}  Bxg3 {[%clk 0:02:50]} 12. hxg3 {[%clk 0:02:49]}  cxd4 {[%clk 0:02:50]} 13. exd5 {[%clk 0:02:27]}  Qxd5 {[%clk 0:02:47]} 14. Ne4 {[%clk 0:02:23]}  dxc3 {[%clk 0:02:43]} 15. Nxf6+ {[%clk 0:02:13]}  gxf6 {[%clk 0:02:44]} 16. bxc3 {[%clk 0:02:13]}  Ne5 {[%clk 0:02:40]} 17. Rad1 {[%clk 0:02:07]}  Nxf3+ {[%clk 0:02:32]} 18. gxf3 {[%clk 0:02:06]}  Qxf3 {[%clk 0:02:32]} 19. Qxf3 {[%clk 0:02:05]}  Bxf3 {[%clk 0:02:33]} 20. Rd2 {[%clk 0:02:06]}  Rfd8 {[%clk 0:02:31]} 21. Rc1 {[%clk 0:02:04]}  Kg7 {[%clk 0:02:31]} 22. Kf1 {[%clk 0:02:03]}  Rd6 {[%clk 0:02:28]} 23. c4 {[%clk 0:01:53]}  Rad8 {[%clk 0:02:26]} 24. Rc3 {[%clk 0:01:53]}  e5 {[%clk 0:02:22]} 25. Be2 {[%clk 0:01:21]}  Rxd2 {[%clk 0:02:18]} 26. Bxf3 {[%clk 0:01:21]}  Rxa2 {[%clk 0:02:18]} 27. c5 {[%clk 0:01:21]}  Rdd2 {[%clk 0:02:18]} 28. c6 {[%clk 0:01:20]}  Rxf2+ {[%clk 0:02:18]} 29. Ke1 {[%clk 0:01:14]}  Rfc2 {[%clk 0:02:18]} 30. Rxc2 {[%clk 0:01:00]}  Rxc2 {[%clk 0:02:18]} 31. Kd1 {[%clk 0:00:59]}  Rc5 {[%clk 0:02:18]} 0-1


[Site "https://www.chess.com"]